[Event "Asian Amateur-ch Open 2022"]
[Site "Muscat"]
[Date "2022.10.03"]
[Round "6.22"]
[White "Al Darwashi, Anas"]
[Black "Gabdushev, Arman"]
[Result "1-0"]
[ECO "B12"]
[WhiteElo "1530"]
[BlackElo "1827"]
[Annotator "NA RC COMBH"]
[PlyCount "79"]
[EventDate "2022.09.29"]
[EventType "swiss"]
[SourceTitle "playchess.com"]
[Source "ChessBase"]
[SourceQuality "1"]
[TimeControl "5400+30"]

{[%evp 8,79,37,0,32767,33,25,32767,46,-2,52,64,82,80,78,60,68,74,119,49,69,64,88,87,123,111,97,104,32767,32767,32767,32767,117,32767,32767,32767,32767,184,138,97,32767,32767,98,32767,82,77,70,74,96,108,189,194,271,277,300,310,32767,32767,743,796,704,661,500,32767,32767,32767,32767,811,32767,828,32767,32767,802,796]} 1. e4 {[%emt 0:00:01]} c6 {[%emt 0:00:03]} 2. d4 {[%emt 0:00:05]} d5 {[%emt 0:00:05]} 3. f3 {[%emt 0:00:02]} Qb6 {[%emt 0:00:09]} 4. c4 {[%emt 0:02:55]} dxc4 {[%emt 0:02:26]} 5. Nc3 {[%emt 0:00:51]} Nd7 {[%emt 0:00:42]} 6. Bxc4 {[%emt 0:00:39]} e5 $1 {[%emt 0:00:09]} 7. Nge2 {[%emt 0:04:00]} exd4 {[%emt 0:02:19]} 8. Qxd4 {[%emt 0:00:02]} Qxd4 {[%emt 0:01:06]} (8... Ngf6 $1 $11 {deserves consideration.}) 9. Nxd4 {[%emt 0:02:41]} Ne5 {[%emt 0:00:32]} 10. Be2 {[%emt 0:01:48]} Bb4 {[%emt 0:00:26]} 11. Bd2 {[%emt 0:00:48]} Ne7 {[%emt 0:02:57]} 12. O-O-O {[%emt 0:02:00]} a6 {[%emt 0:00:32]} (12... Ba5 $142) 13. Kc2 {[%emt 0:01:37]} (13. Na4 $16 Bxd2+ 14. Rxd2 (14. Kxd2 Nd7 $16)) 13... c5 {[%emt 0:00:42]} 14. Nb3 {[%emt 0:04:20]} N5c6 {[%emt 0:03:01]} 15. a3 {[%emt 0:02:04]} Bxc3 {[%emt 0:00:26]} (15... Be6 $142) 16. Bxc3 {[%emt 0:00:28]} b6 {[%emt 0:00:27]} 17. Rd6 {[%emt 0:03:16]} ({Don't take} 17. Bxg7 Rg8 18. Bc3 Rxg2 $14) 17... O-O {[%emt 0:02:31]} 18. Bc4 {[%emt 0:04:58]} b5 {[%emt 0:04:29]} 19. Bd5 {[%emt 0:00:40]} Nxd5 {[%emt 0:00:16]} 20. exd5 {[%emt 0:00:02]} Bf5+ {[%emt 0:00:29]} 21. Kc1 {[%emt 0:04:24]} c4 {[%emt 0:01:05]} 22. Nc5 {[%emt 0:02:38]} ({Don't do} 22. Rxc6 $6 cxb3 23. Re1 h5 $16) 22... Ne7 {[%emt 0:00:46]} 23. Nxa6 {[%emt 0:04:26]} (23. g4 $18 Bd3 24. Re1 (24. Nxa6 Nc8 $16)) 23... Rfd8 {[%emt 0:00:44]} 24. Rxd8+ {[%emt 0:01:04]} Rxd8 {[%emt 0:00:10]} 25. Nc7 {[%emt 0:00:48]} Nxd5 {[%emt 0:01:32]} 26. Rd1 {[%emt 0:01:45]} Bd3 {[%emt 0:00:29]} 27. Nxb5 {[%emt 0:02:10]} Rb8 {[%emt 0:00:51]} 28. a4 {[%emt 0:00:17]} Ne3 {[%emt 0:03:36] [#]} (28... Ra8 $16) 29. Re1 $1 {[%emt 0:01:19]} Nd5 $18 {[%emt 0:02:50] [#]} (29... Nxg2 $142 30. Rg1 Nf4 31. Rxg7+ Kf8) 30. a5 $1 {[%emt 0:02:02]} f6 {[%emt 0:00:20] [#]} 31. a6 $1 {[%emt 0:02:41]} Nxc3 {[%emt 0:03:17]} 32. bxc3 {[%emt 0:03:05]} Kf7 $2 {[%emt 0:01:43]} (32... Rxb5 $11 33. Re8+ (33. a7 Rb1+ 34. Kd2 Rb2+ 35. Kd1 Rb1+ 36. Kd2 Rb2+ 37. Kd1 Rb1+ 38. Kd2 $11) 33... Kf7) 33. a7 {[%emt 0:01:33]} Ra8 {[%emt 0:00:09]} 34. Nd6+ {[%emt 0:01:03]} Kg6 {[%emt 0:00:22]} 35. Re7 {[%emt 0:00:20]} Bf1 {[%emt 0:01:00]} 36. Kd2 {[%emt 0:03:10]} f5 {[%emt 0:01:53]} 37. Rb7 {[%emt 0:01:01]} f4 {[%emt 0:01:11]} 38. Ke1 {[%emt 0:01:04]} Bxg2 {[%emt 0:00:16]} 39. Kf2 {[%emt 0:00:01]} Bh3 {[%emt 0:00:14]} 40. Nb5 {[%emt 0:00:15]} 1-0

[Event "Asian Amateur-ch Open 2022"]
[Site "Muscat"]
[Date "2022.10.03"]
[Round "6.23"]
[White "Al Ansi Amin"]
[Black "Al Jahwari, Adnan Mohammed"]
[Result "1-0"]
[ECO "B20"]
[WhiteElo "1806"]
[BlackElo "1546"]
[Annotator "NA RC COMBH"]
[PlyCount "109"]
[EventDate "2022.09.29"]
[EventType "swiss"]
[SourceTitle "playchess.com"]
[Source "ChessBase"]
[SourceQuality "1"]
[TimeControl "5400+30"]

1. e4 {[%emt 0:00:02]} c5 {[%emt 0:00:19]} 2. b3 {[%emt 0:00:11]} d6 {[%emt 0:00:17]} 3. Bb5+ {[%emt 0:00:26]} Bd7 {[%emt 0:00:21]} 4. Bxd7+ {[%emt 0:00:29]} Qxd7 {[%emt 0:00:13]} 5. Bb2 {[%emt 0:00:37]} e5 {[%emt 0:03:00]} 6. Nc3 {[%emt 0:01:55]} Nf6 {[%emt 0:00:19]} 7. Nge2 {[%emt 0:05:26]} Nc6 {[%emt 0:05:14]} 8. O-O {[%emt 0:01:14]} g5 {[%emt 0:04:48]} 9. Ng3 {[%emt 0:00:46]} h5 {[%emt 0:01:36]} 10. d3 {[%emt 0:00:33]} h4 {[%emt 0:06:34]} 11. Nf5 {[%emt 0:00:24]} Nd4 {[%emt 0:00:24]} 12. Nxd4 {[%emt 0:04:45]} cxd4 {[%emt 0:00:53]} 13. Ne2 {[%emt 0:00:11]} Be7 {[%emt 0:08:11]} 14. f3 {[%emt 0:01:12]} Nh5 {[%emt 0:02:22]} 15. c3 {[%emt 0:01:10]} dxc3 {[%emt 0:02:37]} 16. Bxc3 {[%emt 0:00:25]} Nf4 {[%emt 0:05:16]} 17. d4 {[%emt 0:06:27]} f6 {[%emt 0:01:00]} 18. h3 {[%emt 0:34:21]} Qb5 {[%emt 0:03:00]} 19. Nxf4 {[%emt 0:06:51]} gxf4 {[%emt 0:00:53]} 20. Rc1 {[%emt 0:02:25]} Kf7 {[%emt 0:01:36]} 21. Rf2 {[%emt 0:01:35]} Rag8 {[%emt 0:03:40]} 22. Rfc2 {[%emt 0:00:59]} Rg3 {[%emt 0:01:15]} 23. Be1 {[%emt 0:02:33]} Rg7 {[%emt 0:01:45]} 24. Qe2 {[%emt 0:04:56]} (24. Kh2 $16) 24... Qxe2 {[%emt 0:15:53]} 25. Rxe2 {[%emt 0:00:01]} Bd8 {[%emt 0:00:55]} 26. d5 {[%emt 0:00:54]} Bb6+ {[%emt 0:04:42]} 27. Kh2 {[%emt 0:01:00]} f5 {[%emt 0:00:30]} 28. b4 {[%emt 0:02:08]} fxe4 {[%emt 0:00:17]} 29. Rxe4 {[%emt 0:01:41]} Kf6 {[%emt 0:02:01]} 30. a4 {[%emt 0:00:21]} Rc7 {[%emt 0:03:38]} 31. Rec4 {[%emt 0:02:37]} Rxc4 {[%emt 0:05:25]} 32. Rxc4 {[%emt 0:00:06]} Ke7 {[%emt 0:00:40]} 33. a5 {[%emt 0:00:33]} Bd8 {[%emt 0:00:21]} 34. Bf2 {[%emt 0:02:27]} a6 {[%emt 0:00:16]} 35. Kg1 {[%emt 0:00:10]} Kd7 {[%emt 0:00:20]} 36. Kf1 {[%emt 0:01:14]} Be7 {[%emt 0:00:26]} 37. Bb6 {[%emt 0:01:38]} Rc8 {[%emt 0:00:16]} 38. Rxc8 {[%emt 0:00:54]} Kxc8 {[%emt 0:00:06]} 39. Ke2 {[%emt 0:00:05]} Kd7 {[%emt 0:00:55]} 40. Kd3 {[%emt 0:00:05]} Ke8 {[%emt 0:02:40]} 41. Ke4 {[%emt 0:00:03]} Kf7 {[%emt 0:00:12]} 42. Kf5 {[%emt 0:00:03]} Bf6 {[%emt 0:01:24]} 43. Kg4 {[%emt 0:00:56]} Kg6 {[%emt 0:07:29]} 44. Bf2 {[%emt 0:01:29]} Bd8 {[%emt 0:01:18]} 45. Bxh4 {[%emt 0:00:28]} Bxh4 {[%emt 0:00:18]} 46. Kxh4 {[%emt 0:00:02]} Kf5 {[%emt 0:01:11]} 47. Kh5 {[%emt 0:01:31]} e4 {[%emt 0:00:16]} 48. fxe4+ {[%emt 0:00:19]} Kxe4 {[%emt 0:00:04]} 49. Kg4 {[%emt 0:00:44]} Kxd5 {[%emt 0:01:09]} 50. h4 {[%emt 0:03:32]} Ke4 {[%emt 0:05:01]} 51. h5 {[%emt 0:00:20]} d5 {[%emt 0:00:04]} 52. h6 {[%emt 0:00:09]} d4 {[%emt 0:00:05]} 53. h7 {[%emt 0:00:06]} d3 {[%emt 0:00:03]} 54. h8=Q {[%emt 0:00:14]} d2 {[%emt 0:00:03]} 55. Qa1 {[%emt 0:12:17]} 1-0

[Event "Asian Amateur-ch Open 2022"]
[Site "Muscat"]
[Date "2022.10.03"]
[Round "6.24"]
[White "Abdivaliev, Daniial"]
[Black "Ferzli, Dany Michael"]
[Result "1/2-1/2"]
[ECO "B10"]
[WhiteElo "1528"]
[BlackElo "1789"]
[Annotator "NA RC COMBH"]
[PlyCount "95"]
[EventDate "2022.09.29"]
[EventType "swiss"]
[SourceTitle "playchess.com"]
[Source "ChessBase"]
[SourceQuality "1"]
[TimeControl "5400+30"]

1. e4 {[%emt 0:05:39]} c6 {[%emt 0:00:05]} 2. d3 {[%emt 0:01:08]} d5 {[%emt 0:00:08]} 3. Nd2 {[%emt 0:00:04]} dxe4 {[%emt 0:00:04]} 4. dxe4 {[%emt 0:00:02]} e5 {[%emt 0:02:52]} 5. Bc4 {[%emt 0:04:01]} Nf6 {[%emt 0:01:27]} 6. h3 {[%emt 0:01:08]} Bc5 {[%emt 0:02:25]} 7. Qe2 {[%emt 0:00:13]} O-O {[%emt 0:01:01]} 8. a4 {[%emt 0:00:17]} a5 {[%emt 0:00:29]} 9. Ngf3 {[%emt 0:00:13]} Re8 {[%emt 0:03:09]} 10. g4 {[%emt 0:05:08]} Nbd7 {[%emt 0:07:14]} 11. Nf1 {[%emt 0:01:15]} Nf8 {[%emt 0:01:38]} 12. Ng3 {[%emt 0:02:44]} Qc7 {[%emt 0:08:58]} 13. g5 {[%emt 0:07:12]} N6d7 {[%emt 0:00:09]} 14. c3 {[%emt 0:11:54]} Nb6 {[%emt 0:01:03]} 15. Bb3 {[%emt 0:07:33]} Be6 {[%emt 0:00:37]} 16. Qc2 {[%emt 0:00:26]} Rad8 {[%emt 0:03:04]} 17. Bd2 {[%emt 0:05:13]} Nc8 {[%emt 0:00:39]} 18. Bxe6 {[%emt 0:02:18]} Nxe6 {[%emt 0:00:49]} 19. O-O {[%emt 0:03:40]} Ne7 {[%emt 0:07:52]} 20. Rad1 {[%emt 0:04:06]} Ng6 {[%emt 0:00:22]} 21. Nh5 {[%emt 0:00:04]} Qc8 {[%emt 0:06:42]} 22. Kh2 {[%emt 0:05:51]} Rd6 {[%emt 0:05:04]} 23. Be3 {[%emt 0:01:27]} Rxd1 {[%emt 0:03:24]} 24. Rxd1 {[%emt 0:01:00]} Bxe3 {[%emt 0:03:12]} 25. fxe3 {[%emt 0:02:35]} Rd8 {[%emt 0:00:45]} 26. Ng3 {[%emt 0:00:33]} Rxd1 {[%emt 0:02:06]} 27. Qxd1 {[%emt 0:00:05]} Qd8 {[%emt 0:00:09]} 28. Qxd8+ {[%emt 0:03:37]} Nxd8 {[%emt 0:00:02]} 29. Nf5 {[%emt 0:00:15]} Ne6 {[%emt 0:01:06]} 30. Nd6 {[%emt 0:01:04]} Nc5 {[%emt 0:01:16]} 31. h4 {[%emt 0:00:44]} f6 {[%emt 0:05:13]} 32. b4 {[%emt 0:06:31]} axb4 {[%emt 0:03:29]} 33. cxb4 {[%emt 0:00:02]} Nxa4 {[%emt 0:00:21]} 34. Nxb7 {[%emt 0:00:07]} Nc3 {[%emt 0:00:25]} 35. Nd6 {[%emt 0:08:07]} Nd1 {[%emt 0:08:25]} 36. Nf5 {[%emt 0:03:06]} Kf7 {[%emt 0:02:15]} 37. h5 {[%emt 0:00:23]} Ne7 {[%emt 0:00:59]} 38. Nd6+ {[%emt 0:01:35]} Kf8 {[%emt 0:02:50]} 39. h6 {[%emt 0:00:39]} Nxe3 {[%emt 0:03:55]} 40. hxg7+ {[%emt 0:00:20]} Kxg7 {[%emt 0:00:03]} 41. Ne8+ {[%emt 0:00:08]} Kg6 {[%emt 0:02:12]} 42. gxf6 {[%emt 0:00:23]} Ng4+ {[%emt 0:00:29]} 43. Kg3 {[%emt 0:01:48]} Nxf6 {[%emt 0:00:23]} 44. Nxe5+ {[%emt 0:00:48]} Kg5 {[%emt 0:00:47]} 45. Nf3+ {[%emt 0:03:16]} Kg6 {[%emt 0:00:22]} 46. Nd6 {[%emt 0:00:38]} Nxe4+ {[%emt 0:08:41]} 47. Nxe4 {[%emt 0:00:13]} Nd5 {[%emt 0:00:01]} 48. Kh3 {[%emt 0:04:57]} 1/2-1/2

[Event "Asian Amateur-ch Open 2022"]
[Site "Muscat"]
[Date "2022.10.03"]
[Round "6.25"]
[White "Al Abdali, Zeyad Saleh"]
[Black "Al Mamari, Ali Abdullah"]
[Result "1-0"]
[ECO "D93"]
[WhiteElo "1780"]
[BlackElo "1509"]
[Annotator "NA RC COMBH"]
[PlyCount "85"]
[EventDate "2022.09.29"]
[EventType "swiss"]
[SourceTitle "playchess.com"]
[Source "ChessBase"]
[SourceQuality "1"]
[TimeControl "5400+30"]

1. d4 {[%emt 0:12:15]} Nf6 {[%emt 1:31:00]} 2. c4 {[%emt 0:02:07]} g6 {[%emt 0:00:00]} 3. Nc3 {[%emt 0:00:21]} d5 {[%emt 0:00:00]} 4. Nf3 {[%emt 0:01:15]} Bg7 {[%emt 0:00:00]} 5. Bf4 {[%emt 0:00:23]} O-O {[%emt 0:00:00]} 6. Rc1 {[%emt 0:00:41]} c6 {[%emt 0:00:00]} 7. e3 {[%emt 0:03:49]} Nh5 {[%emt 0:00:00]} 8. Be5 {[%emt 0:02:43]} f6 {[%emt 0:00:00]} 9. Bxb8 {[%emt 0:01:31]} Rxb8 {[%emt 0:00:00]} 10. cxd5 {[%emt 0:00:29]} cxd5 {[%emt 0:00:00]} 11. Nxd5 {[%emt 0:00:50]} Kh8 {[%emt 0:00:00]} 12. Nc3 {[%emt 0:05:12]} e5 {[%emt 0:00:00]} 13. h3 {[%emt 0:03:56]} e4 {[%emt 0:00:00]} 14. Nxe4 {[%emt 0:02:59]} Qe7 {[%emt 0:00:00]} 15. Nc5 {[%emt 0:14:26]} Ng3 {[%emt 0:00:00]} 16. fxg3 {[%emt 0:05:41]} Qxe3+ {[%emt 0:00:00]} 17. Be2 {[%emt 0:00:56]} b6 {[%emt 0:00:00]} 18. Rc3 {[%emt 0:03:13]} Qe7 {[%emt 0:00:00]} 19. Nd3 {[%emt 0:01:06]} Re8 {[%emt 0:00:00]} 20. Qd2 {[%emt 0:03:37]} Bh6 {[%emt 0:00:00]} 21. Nf4 {[%emt 0:11:49]} Bxf4 {[%emt 0:00:00]} 22. gxf4 {[%emt 0:00:37]} Ba6 {[%emt 0:00:00]} 23. Ng1 {[%emt 0:05:23]} Rbd8 {[%emt 0:00:00]} 24. Kf2 {[%emt 0:02:47]} Bb7 {[%emt 0:00:00]} 25. Re3 {[%emt 0:01:27]} Qxe3+ {[%emt 0:00:00]} 26. Qxe3 {[%emt 0:13:57]} Rxe3 {[%emt 0:12:30]} 27. Kxe3 {[%emt 0:00:00]} Bxg2 {[%emt 0:00:00]} 28. Rh2 {[%emt 0:00:00]} Bd5 {[%emt 0:00:00]} 29. a3 {[%emt 0:00:00]} Kg7 {[%emt 0:00:00]} 30. Bf3 {[%emt 0:00:00]} Re8+ {[%emt 0:00:00]} 31. Kf2 {[%emt 0:00:00]} Bb3 {[%emt 0:00:00]} 32. Ne2 {[%emt 0:00:00]} Bd1 {[%emt 0:00:00]} 33. Nc3 {[%emt 0:00:00]} Bxf3 {[%emt 0:00:00]} 34. Kxf3 {[%emt 0:00:00]} f5 {[%emt 0:00:00]} 35. Re2 {[%emt 0:00:00]} Ra8 {[%emt 0:00:00]} 36. d5 {[%emt 0:00:00]} Kf7 {[%emt 0:00:00]} 37. Ke3 {[%emt 0:00:00]} a6 {[%emt 0:00:00]} 38. Kd4 {[%emt 0:00:00]} h6 {[%emt 0:00:00]} 39. d6 {[%emt 0:00:00]} g5 {[%emt 0:00:00]} 40. fxg5 {[%emt 0:00:19]} hxg5 {[%emt 0:00:00]} 41. Re7+ {[%emt 0:00:11]} Kf6 {[%emt 0:00:00]} 42. Nd5+ {[%emt 0:00:18]} Kg6 {[%emt 0:00:00]} 43. d7 {[%emt 0:00:43]} 1-0

[Event "Asian Amateur-ch Open 2022"]
[Site "Muscat"]
[Date "2022.10.03"]
[Round "6.26"]
[White "Shaurya Dinesh Sawlani"]
[Black "Said Ahmed Ali Jidal Fadhil"]
[Result "1-0"]
[ECO "B00"]
[WhiteElo "1448"]
[BlackElo "1755"]
[Annotator "NA RC COMBH"]
[PlyCount "79"]
[EventDate "2022.09.29"]
[EventType "swiss"]
[SourceTitle "playchess.com"]
[Source "ChessBase"]
[SourceQuality "1"]
[TimeControl "5400+30"]

1. e4 {[%emt 0:00:02]} b6 {[%emt 0:00:00]} 2. d4 {[%emt 0:00:16]} Bb7 {[%emt 0:00:02]} 3. Bd3 {[%emt 0:00:37]} e6 {[%emt 0:00:33]} 4. Nf3 {[%emt 0:01:06]} Nf6 {[%emt 0:00:11]} 5. Nbd2 {[%emt 0:00:38]} c5 {[%emt 0:01:30]} 6. c3 {[%emt 0:01:29]} d5 {[%emt 0:00:48]} 7. e5 {[%emt 0:01:20]} Nfd7 {[%emt 0:01:29]} 8. O-O {[%emt 0:00:53]} Ba6 {[%emt 0:03:40]} 9. Bxa6 {[%emt 0:02:04]} Nxa6 {[%emt 0:00:01]} 10. Qe2 {[%emt 0:02:14]} Nab8 {[%emt 0:06:56]} 11. c4 {[%emt 0:02:25]} cxd4 {[%emt 0:04:55]} 12. cxd5 {[%emt 0:02:20]} Bc5 {[%emt 0:04:53]} 13. dxe6 {[%emt 0:02:03]} fxe6 {[%emt 0:00:38]} 14. Qe4 {[%emt 0:00:41]} Na6 {[%emt 0:00:53]} 15. Nxd4 {[%emt 0:01:31]} Bxd4 {[%emt 0:00:42]} 16. Qxd4 {[%emt 0:00:13]} O-O {[%emt 0:00:14]} 17. Ne4 {[%emt 0:01:37]} Nc7 {[%emt 0:15:46]} 18. Bg5 {[%emt 0:00:50]} Qe8 {[%emt 0:00:27]} 19. Nd6 {[%emt 0:12:58]} Qh5 {[%emt 0:06:01]} 20. Be7 {[%emt 0:01:00]} Rfb8 {[%emt 0:03:49]} 21. Ne4 {[%emt 0:05:00]} Nd5 {[%emt 0:06:44]} 22. Bd6 {[%emt 0:00:17]} Re8 {[%emt 0:03:22]} 23. Nc3 {[%emt 0:04:58]} Nxc3 {[%emt 0:05:27]} 24. Qxc3 {[%emt 0:00:13]} Rac8 {[%emt 0:00:21]} 25. Qd4 {[%emt 0:00:20]} Qg5 {[%emt 0:02:57]} 26. f4 {[%emt 0:06:29]} Qg4 {[%emt 0:03:43]} 27. Rf2 {[%emt 0:00:23]} h5 {[%emt 0:27:58]} 28. Qa4 {[%emt 0:04:35]} Nc5 {[%emt 0:00:00]} 29. Bxc5 {[%emt 0:00:54]} bxc5 {[%emt 0:00:00]} 30. Qxa7 {[%emt 0:00:51]} Red8 {[%emt 0:00:00]} 31. Qa4 {[%emt 0:01:44]} Rd4 {[%emt 0:00:00]} 32. Qb3 {[%emt 0:01:21]} Rcd8 {[%emt 0:00:00]} 33. Raf1 {[%emt 0:02:07]} Rd3 {[%emt 0:00:00]} 34. Qb7 {[%emt 0:03:59]} h4 {[%emt 0:01:55]} 35. f5 {[%emt 0:01:56]} exf5 {[%emt 0:00:10]} 36. e6 {[%emt 0:00:36]} Rd1 {[%emt 0:01:24]} 37. Qf7+ {[%emt 0:00:31]} Kh8 {[%emt 0:00:21]} 38. e7 {[%emt 0:00:51]} Rxf1+ {[%emt 0:00:04]} 39. Rxf1 {[%emt 0:00:07]} Qd4+ {[%emt 0:01:09]} 40. Kh1 {[%emt 0:00:07]} 1-0

[Event "Asian Amateur-ch Open 2022"]
[Site "Muscat"]
[Date "2022.10.03"]
[Round "6.27"]
[White "Krishanu Sai"]
[Black "Ahmed Waqqas, Alawlaqi"]
[Result "1-0"]
[ECO "E64"]
[WhiteElo "1748"]
[BlackElo "1417"]
[Annotator "NA RC COMBH"]
[PlyCount "85"]
[EventDate "2022.09.29"]
[EventType "swiss"]
[SourceTitle "playchess.com"]
[Source "ChessBase"]
[SourceQuality "1"]
[TimeControl "5400+30"]

1. d4 {[%emt 0:00:06]} Nf6 {[%emt 0:01:19]} 2. Nf3 {[%emt 0:00:20]} g6 {[%emt 0:00:07]} 3. c4 {[%emt 0:00:07]} Bg7 {[%emt 0:00:20]} 4. g3 {[%emt 0:00:11]} O-O {[%emt 0:00:10]} 5. Bg2 {[%emt 0:00:04]} d6 {[%emt 0:00:16]} 6. O-O {[%emt 0:00:22]} c5 {[%emt 0:01:57]} 7. d5 {[%emt 0:01:09]} Na6 {[%emt 0:11:34]} 8. Nc3 {[%emt 0:02:00]} Nd7 {[%emt 0:01:50]} 9. e4 {[%emt 0:02:34]} Ne5 {[%emt 0:02:45]} 10. Qb3 {[%emt 0:05:41]} h6 {[%emt 0:11:00]} 11. Nxe5 {[%emt 0:08:36]} dxe5 {[%emt 0:00:46]} 12. Be3 {[%emt 0:02:32]} f5 {[%emt 0:03:55]} 13. exf5 {[%emt 0:02:41]} gxf5 {[%emt 0:00:32]} 14. f3 {[%emt 0:00:42]} Qd6 {[%emt 0:04:31]} 15. Rad1 {[%emt 0:03:12]} Qg6 {[%emt 0:10:49]} 16. Bf2 {[%emt 0:07:37]} h5 {[%emt 0:04:21]} 17. Rfe1 {[%emt 1:01:06]} h4 {[%emt 0:05:53]} 18. Qc2 {[%emt 0:00:00]} hxg3 {[%emt 0:05:32]} 19. hxg3 {[%emt 0:00:00]} Bd7 {[%emt 0:04:28]} 20. a3 {[%emt 0:00:00]} Qh5 {[%emt 0:03:29]} 21. Rb1 {[%emt 0:00:00]} Kf7 {[%emt 0:06:15]} 22. b4 {[%emt 0:00:00]} b6 {[%emt 0:03:05]} 23. Na4 {[%emt 0:00:00]} cxb4 {[%emt 0:01:44]} 24. axb4 {[%emt 0:03:30]} Rh8 {[%emt 0:00:07]} 25. b5 {[%emt 0:00:00]} Nc7 {[%emt 0:02:13]} 26. Red1 {[%emt 0:00:00]} Ne8 {[%emt 0:02:08]} 27. c5 {[%emt 0:00:00]} f4 {[%emt 0:03:05]} 28. g4 {[%emt 0:00:00]} Qh2+ {[%emt 0:02:54]} 29. Kf1 {[%emt 0:00:00]} bxc5 {[%emt 0:01:16]} 30. Nxc5 {[%emt 0:00:00]} Rc8 {[%emt 0:00:01]} 31. Qd3 {[%emt 0:00:00]} Nf6 {[%emt 0:02:41]} 32. Nxd7 {[%emt 0:00:00]} Nxd7 {[%emt 0:00:03]} 33. Qf5+ {[%emt 0:00:00]} Nf6 {[%emt 0:01:01]} 34. Rd2 {[%emt 0:00:00]} e4 {[%emt 0:02:07]} 35. fxe4 {[%emt 0:00:00]} Bh6 {[%emt 0:00:09]} 36. Qe6+ {[%emt 0:00:00]} Kg7 {[%emt 0:00:32]} 37. Qxe7+ {[%emt 0:00:00]} Kg6 {[%emt 0:00:09]} 38. e5 {[%emt 0:00:00]} f3 {[%emt 0:01:07]} 39. Qxf6+ {[%emt 0:00:00]} Kh7 {[%emt 0:00:03]} 40. Qf7+ {[%emt 0:00:08]} Bg7 {[%emt 0:00:02]} 41. Bxf3 {[%emt 0:00:32]} Rhf8 {[%emt 0:01:47]} 42. Be4+ {[%emt 0:00:55]} Kh8 {[%emt 0:00:48]} 43. Qh5+ {[%emt 0:01:21]} 1-0

[Event "Asian Amateur-ch Open 2022"]
[Site "Muscat"]
[Date "2022.10.03"]
[Round "6.28"]
[White "Ranjith, R.k."]
[Black "Al Dhiyabi, Yousuf"]
[Result "1-0"]
[ECO "B23"]
[WhiteElo "1706"]
[BlackElo "1393"]
[Annotator "NA RC COMBH"]
[PlyCount "76"]
[EventDate "2022.09.29"]
[EventType "swiss"]
[SourceTitle "playchess.com"]
[Source "ChessBase"]
[SourceQuality "1"]
[TimeControl "5400+30"]

1. e4 {[%emt 0:00:04]} c5 {[%emt 0:00:07]} 2. Nc3 {[%emt 0:00:51]} e6 {[%emt 0:00:29]} 3. d4 {[%emt 0:00:47]} cxd4 {[%emt 0:00:15]} 4. Qxd4 {[%emt 0:00:02]} Nc6 {[%emt 0:00:18]} 5. Qd2 {[%emt 0:00:02]} a6 {[%emt 0:01:59]} 6. a3 {[%emt 0:03:33]} Nf6 {[%emt 0:00:18]} 7. f4 {[%emt 0:00:31]} d6 {[%emt 0:06:28]} 8. Be2 {[%emt 0:02:00]} b5 {[%emt 0:11:15]} 9. b4 {[%emt 0:02:48]} Bb7 {[%emt 0:04:29]} 10. Bf3 {[%emt 0:01:30]} Qc7 {[%emt 0:00:40]} 11. Bb2 {[%emt 0:00:26]} Be7 {[%emt 0:04:42]} 12. Nh3 {[%emt 0:06:53]} Rc8 {[%emt 0:03:58]} 13. O-O {[%emt 0:07:03]} O-O {[%emt 0:04:20]} 14. Rae1 {[%emt 0:01:41]} Rfd8 {[%emt 0:00:46]} 15. Qf2 {[%emt 0:00:48]} e5 {[%emt 0:04:28]} 16. Nd5 {[%emt 0:04:05]} Nxd5 {[%emt 0:01:46]} 17. exd5 {[%emt 0:00:02]} Nd4 {[%emt 0:01:12]} 18. fxe5 {[%emt 0:01:02]} dxe5 {[%emt 0:03:19]} 19. Bg4 {[%emt 0:20:30]} Bxd5 {[%emt 0:03:13]} 20. Bxc8 {[%emt 0:00:13]} Rxc8 {[%emt 0:00:38]} 21. Bxd4 {[%emt 0:00:23]} exd4 {[%emt 0:00:54]} 22. Qxd4 {[%emt 0:00:02]} Bc4 {[%emt 0:06:12]} 23. Rf3 {[%emt 0:02:35]} Bd6 {[%emt 0:04:38]} 24. Nf4 {[%emt 0:03:49]} a5 {[%emt 0:02:07]} 25. c3 {[%emt 0:02:04]} f6 {[%emt 0:14:41]} 26. Qe4 {[%emt 0:07:50]} Be5 {[%emt 0:03:23]} 27. Nd5 {[%emt 0:03:02]} Qd6 {[%emt 0:03:29]} 28. Ne3 {[%emt 0:04:44]} Bxh2+ {[%emt 0:04:45]} 29. Kh1 {[%emt 0:00:02]} Be5 {[%emt 0:04:34]} 30. Rd1 {[%emt 0:02:35]} Qc7 {[%emt 0:00:49]} 31. Nxc4 {[%emt 0:00:21]} Qxc4 {[%emt 0:00:05]} 32. Qxc4+ {[%emt 0:00:20]} Rxc4 {[%emt 0:00:23]} 33. bxa5 {[%emt 0:11:13]} Ra4 {[%emt 0:02:36]} 34. Rd8+ {[%emt 0:00:03]} Kf7 {[%emt 0:00:02]} 35. Rd5 {[%emt 0:00:12]} Ke6 {[%emt 0:00:59]} 36. Rxb5 {[%emt 0:00:02]} Rxa3 {[%emt 0:00:32]} 37. g3 {[%emt 0:00:02]} Bxc3 {[%emt 0:01:48]} 38. Rb1 {[%emt 0:02:11]} Kd5 {[%emt 0:02:53]} 1-0